bitfinex/quotes_ETHUSD_20260312
["timestamp","ask_amount","ask_price","bid_price","bid_amount"]
[1773295118270,3.66255529,2026.4,2026.2,0.001]
[1773295119070,0.45681166,2026.3,2026.1,0.001]
[1773295119300,0.45681166,2026.1,2025.9,0.001]
[1773295121271,1.69071151,2026.1,2025.9,0.001]
[1773295124007,0.002,2026.5,2025.9,0.49300429]
[1773295124306,1.23569396,2026.5,2026.2,0.49200429]
[1773295124795,3.67310651,2026.5,2026.2,0.49200429]
[1773295124997,0.46341255,2026.4,2025.9,0.49300429]
[1773295125196,0.002,2026.5,2025.9,0.49300429]
[1773295125507,1.23565934,2026.5,2026.1,0.49200429]
[1773295128509,0.46341255,2026.4,2026.1,0.49200429]
[1773295130329,0.46341255,2026.4,2026.3,0.001]
[1773295130481,1.69712751,2026.4,2026.3,0.001]
[1773295134219,1.69712751,2026.4,2026.1,0.48359892]
[1773295135505,1.962,2026.3,2026.1,0.48359892]
[1773295137416,3.19578374,2026.3,2026.1,0.48359892]
[1773295138512,1.962,2026.3,2026.1,0.48359892]
[1773295138809,1.23372725,2026.4,2026.1,0.48359892]
[1773295138985,3.20072725,2026.4,2026.1,0.48359892]
[1773295140515,3.20272725,2026.4,2026.1,0.48359892]
[1773295140712,0.002,2026.5,2026.2,0.48359892]
[1773295140911,1.23567242,2026.5,2026.2,0.48359892]
[1773295141415,0.46548198,2026.4,2026.0,0.48459892]
[1773295141815,1.23377584,2026.3,2026.0,0.48459892]
[1773295142318,1.23376458,2026.4,2026.2,0.48459892]
[1773295142988,1.23576458,2026.4,2026.2,0.48459892]
[1773295143190,3.20776458,2026.4,2026.2,0.48459892]
[1773295146818,3.21176458,2026.4,2026.2,0.48459892]
[1773295148415,0.002,2027.0,2026.7,0.48359892]
[1773295148601,0.46548198,2026.7,2026.2,0.001]
[1773295148801,0.46548198,2026.7,2026.2,0.48459892]
[1773295149098,1.23539212,2027.0,2026.2,0.001]
[1773295149099,0.46548198,2026.5,2026.2,0.001]
[1773295150111,1.69919694,2026.4,2026.2,0.001]
[1773295150636,3.66219694,2026.4,2026.2,0.001]
[1773295152447,0.46548198,2026.3,2026.2,0.001]
[1773295156044,1.69925782,2026.3,2026.2,0.001]
[1773295156408,0.46548198,2026.3,2026.2,0.001]
[1773295156933,1.69925782,2026.3,2026.2,0.001]
[1773295157341,0.46548198,2026.3,2026.2,0.001]
[1773295158444,1.69925782,2026.3,2026.2,0.001]
[1773295158618,0.46548198,2026.2,2026.0,0.001]
[1773295160921,0.45971883,2026.3,2026.0,0.001]
[1773295161335,0.45971883,2026.3,2026.0,0.46380107]
[1773295162746,0.002,2026.4,2026.1,0.46280107]
[1773295163044,1.981,2026.3,2026.1,0.46280107]
[1773295166547,1.981,2026.3,2026.1,1.69669214]
[1773295166950,1.981,2026.3,2026.2,0.001]
[1773295167149,0.46171883,2026.4,2026.2,0.001]
[1773295167350,0.002,2026.4,2026.2,0.001]
[1773295167522,0.002,2026.3,2026.2,0.001]
[1773295170517,0.002,2026.3,2026.2,0.46380107]
[1773295176064,0.45971883,2026.6,2026.2,0.001]
[1773295177865,0.45971883,2026.6,2026.3,1.6965543]
[1773295178049,0.45971883,2026.6,2026.3,0.46280107]
[1773295178251,1.69332273,2026.6,2026.3,0.46280107]
[1773295178454,0.45971883,2026.5,2026.2,1.23483432]
[1773295178654,0.45971883,2026.5,2026.2,0.46380107]
[1773295178879,0.45971883,2026.5,2026.2,1.69762783]
[1773295179062,1.2336039,2026.6,2026.3,0.46280107]
[1773295179245,0.002,2026.7,2026.3,0.46280107]
[1773295179840,0.002,2026.7,2026.4,0.46380107]
[1773295180049,0.46171883,2026.7,2026.4,0.46380107]
[1773295180263,0.002,2026.6,2026.4,1.69751582]
[1773295180564,0.002,2026.6,2026.4,1.23471475]
[1773295180740,0.002,2026.7,2026.5,0.46280107]
[1773295182133,0.002,2026.9,2026.7,0.47290934]
[1773295182436,0.48113381,2026.8,2026.4,1.70761096]
[1773295183163,0.48113381,2026.8,2026.5,0.47290934]
[1773295184462,0.002,2026.9,2026.7,1.14954619]
[1773295184663,0.48313381,2026.9,2026.6,0.47290934]
[1773295185639,0.002,2026.9,2026.6,0.47290934]
[1773295186845,0.002,2027.0,2026.8,0.47290934]
[1773295187080,0.48313381,2027.0,2026.5,0.47290934]
[1773295187244,0.48313381,2027.0,2026.5,5.40749553]
[1773295187570,0.48313381,2027.0,2026.5,0.47290934]
[1773295188771,0.48313381,2027.0,2026.6,0.47290934]
[1773295189276,0.48313381,2027.0,2026.5,1.23362405]
[1773295189572,4.93510514,2027.2,2026.6,0.47290934]
[1773295189573,0.48313381,2027.2,2026.6,0.47290934]
[1773295189766,0.48113381,2027.1,2026.7,0.47290934]
[1773295191174,0.47911083,2027.0,2026.6,1.69499324]
[1773295191473,0.002,2027.2,2026.9,0.46143096]
[1773295192065,0.002,2027.0,2026.9,0.46143096]
[1773295192456,0.002,2027.2,2027.0,0.46143096]
[1773295192975,0.002,2027.2,2027.0,1.6947769]
[1773295193292,0.002,2027.2,2027.0,1.23334594]
[1773295193780,0.002,2027.2,2027.0,1.6947769]
[1773295196281,0.48111083,2027.2,2026.8,1.6948555]
[1773295196453,0.48111083,2027.2,2026.9,0.46143096]
[1773295197182,0.002,2027.2,2026.9,0.46143096]
[1773295199287,0.002,2027.2,2027.0,1.23334977]
[1773295199454,0.002,2027.2,2027.0,1.69478073]
[1773295199877,0.002,2027.2,2027.0,0.46143096]
[1773295201591,0.002,2027.2,2026.6,8.82436845]
[1773295201592,0.48111083,2027.2,2026.7,1.2334751]
[1773295201784,0.48111083,2027.2,2026.6,1.69498789]
[1773295203097,0.48111083,2027.2,2026.8,0.46143096]
[1773295203593,0.47911083,2027.1,2026.8,0.46143096]
[1773295203794,0.47911083,2027.1,2026.7,1.23350359]
[1773295203993,0.47911083,2027.1,2026.7,1.69493455]
[1773295204196,0.47911083,2027.1,2026.8,0.001]
[1773295204370,0.002,2027.0,2026.8,0.001]
[1773295204558,0.48111083,2027.0,2026.8,0.001]
[1773295204763,0.48111083,2027.0,2026.6,1.23355517]
[1773295206295,0.47911083,2026.9,2026.5,0.001]
[1773295208593,0.47911083,2026.7,2026.5,0.001]
[1773295209291,0.47911083,2026.6,2026.3,0.001]
[1773295210763,0.47911083,2026.5,2026.3,0.001]
[1773295211867,3.7086877,2026.7,2026.3,0.46243096]
[1773295212199,3.7086441,2026.7,2026.3,0.46243096]
[1773295212369,2.47511083,2026.7,2026.3,0.46243096]
[1773295212572,3.70864457,2026.7,2026.3,0.46243096]
[1773295212983,0.47911083,2026.6,2026.3,1.696206]
[1773295213899,0.47911083,2026.6,2026.3,0.46243096]
[1773295214102,0.47911083,2026.6,2026.3,1.69619477]
[1773295214898,0.47911083,2026.6,2026.3,0.46243096]
[1773295216384,0.47911083,2026.6,2026.3,0.001]
[1773295216589,0.47911083,2026.5,2026.3,0.001]
[1773295218954,0.47911083,2026.6,2026.3,0.46243096]
[1773295219690,0.47911083,2026.6,2026.3,0.001]
[1773295220298,1.71273804,2026.6,2026.3,0.001]
[1773295220886,1.23362721,2026.6,2026.3,0.001]
[1773295221189,0.46028346,2026.5,2026.3,0.001]
[1773295224623,0.42773585,2026.5,2026.3,0.001]
[1773295227616,1.93753971,2026.6,2026.3,0.001]
[1773295228111,0.70394278,2026.6,2026.3,0.001]
[1773295228427,1.93754027,2026.6,2026.3,0.001]
[1773295229034,0.46028346,2026.5,2026.3,0.001]
[1773295229406,0.002,2026.4,2026.3,0.001]
[1773295234164,0.002,2026.4,2025.5,0.001]
[1773295234165,0.46028346,2026.0,2025.5,0.001]
[1773295234318,0.46028346,2025.9,2025.5,0.006]
[1773295234525,0.46028346,2025.5,2025.1,1.68713413]
[1773295234836,0.46028346,2025.5,2025.1,0.001]
[1773295235037,2.95278561,2025.4,2025.1,0.001]
[1773295235342,3.41306907,2025.3,2025.1,0.001]
[1773295235528,0.46028346,2025.3,2025.1,0.001]
[1773295236335,3.40712142,2025.3,2025.1,0.001]
[1773295237123,0.46028346,2025.3,2025.1,0.001]
[1773295237523,3.40500597,2025.3,2025.1,0.001]
[1773295238107,0.46028346,2025.3,2025.1,0.001]
[1773295242232,0.45880297,2025.3,2025.1,0.001]
[1773295245153,1.70673896,2025.8,2025.3,0.47656275]
[1773295245336,1.70672059,2025.8,2025.3,0.47656275]
[1773295245648,2.002,2025.8,2025.3,0.47656275]
[1773295245954,5.40859476,2026.0,2025.5,0.47656275]
[1773295245955,2.47463396,2026.0,2025.5,0.47656275]
[1773295246337,0.47263396,2025.9,2025.5,1.7107727]
[1773295247250,0.47263396,2025.9,2025.5,0.47656275]
[1773295249163,4.64292679,2025.9,2025.5,0.47656275]
[1773295249342,2.93626968,2025.8,2025.5,0.47656275]
[1773295249546,1.70665711,2025.9,2025.5,0.47656275]
[1773295249744,2.93667651,2025.8,2025.5,0.47656275]
[1773295250434,3.40296633,2025.8,2025.5,0.47656275]
[1773295252526,2.93667651,2025.8,2025.6,0.47319582]
[1773295252720,3.95261729,2026.0,2025.6,0.47319582]
[1773295252926,2.93817648,2025.9,2025.6,0.47319582]
[1773295253228,2.93817648,2025.8,2025.6,0.47319582]
[1773295253550,2.007,2026.2,2025.7,0.47319582]
[1773295253731,2.93845882,2026.1,2025.7,0.47319582]
[1773295253936,2.93845882,2026.0,2025.7,0.47319582]
[1773295254251,0.001,2025.8,2025.7,0.47319582]
[1773295254429,2.93910776,2026.1,2025.7,0.47319582]
[1773295254628,2.93910776,2026.0,2025.7,0.47319582]
[1773295254857,2.25144772,2026.2,2025.7,0.47319582]
[1773295255029,2.93910776,2026.1,2025.7,0.47319582]
[1773295255356,3.40607994,2026.0,2025.7,1.23410575]
[1773295255534,0.46628982,2026.0,2025.7,1.70730157]
[1773295255938,3.40607994,2026.0,2025.7,1.70730157]
[1773295256255,3.95161267,2026.2,2025.8,0.47319582]
[1773295256431,2.94042863,2026.1,2025.8,0.47319582]
[1773295256634,2.94042863,2026.0,2025.8,0.47319582]
[1773295256836,3.95161267,2026.2,2025.8,0.47319582]
[1773295257060,2.94042863,2026.1,2025.8,0.47319582]
[1773295257237,2.94042863,2026.0,2025.8,0.47319582]
[1773295257554,3.95161267,2026.2,2025.8,0.47319582]
[1773295257725,3.40749326,2026.1,2025.8,0.47319582]
[1773295257926,2.94120344,2026.0,2025.8,0.47319582]
[1773295258351,0.46628982,2026.1,2025.8,0.47319582]
[1773295258526,2.94207875,2026.0,2025.8,0.47319582]
[1773295258726,0.46628982,2026.1,2025.8,0.47319582]
[1773295258926,3.40844845,2026.0,2025.7,1.23413637]
[1773295259138,0.46628982,2026.0,2025.7,1.23413637]
[1773295259537,0.46628982,2026.0,2025.5,0.0011]
[1773295259830,3.40941442,2025.9,2025.5,1.70855882]
[1773295260030,0.46628982,2025.9,2025.5,1.70855882]
[1773295260965,0.46628982,2025.5,2025.1,0.001]
[1773295261164,0.46628982,2025.3,2025.1,0.001]
[1773295261338,0.46628982,2025.1,2025.0,0.001]
[1773295261538,0.46628982,2025.0,2024.8,0.001]
[1773295261866,0.46628982,2025.0,2024.8,0.0021]
[1773295262236,2.94814859,2024.9,2024.8,0.0021]
[1773295262432,2.84949819,2024.9,2024.8,0.0021]
[1773295263534,2.84949819,2024.9,2024.8,0.47529582]
[1773295264556,2.84949819,2024.9,2024.8,0.0021]
[1773295266959,2.84949819,2024.9,2024.8,0.001]
[1773295269965,3.31578801,2024.9,2024.8,0.0021]
[1773295270264,4.55041688,2024.9,2024.8,0.0021]
[1773295271361,3.31578801,2024.9,2024.8,0.0021]
[1773295271866,2.84949819,2024.9,2024.8,0.0021]
[1773295272070,0.46628982,2025.0,2024.8,0.0021]
[1773295272245,0.46628982,2025.1,2024.8,0.47529582]
[1773295273570,0.46628982,2025.1,2024.8,0.0021]
[1773295273968,0.46628982,2025.0,2024.8,0.0021]
[1773295276189,1.70088528,2025.0,2024.8,0.0021]
[1773295279579,0.46628982,2025.0,2024.8,0.0021]
[1773295279768,1.70086212,2025.0,2024.8,0.0021]
[1773295280274,0.46628982,2025.0,2024.8,0.0021]
[1773295280474,3.41065355,2025.0,2024.8,0.0021]
[1773295281579,1.69981713,2025.1,2024.8,0.0021]
[1773295281781,1.23448218,2025.2,2024.9,0.47850587]
[1773295281954,2.48126474,2025.6,2025.2,0.47850587]
[1773295282285,2.94420158,2025.5,2025.2,0.47850587]
[1773295282651,0.001,2025.7,2025.3,0.47960587]
[1773295282652,3.71643518,2025.7,2025.3,0.47960587]
[1773295282983,3.71643518,2025.7,2025.3,0.47850587]
[1773295282984,2.94399619,2025.6,2025.3,0.47850587]
[1773295283161,3.96702759,2025.7,2025.3,0.47850587]
[1773295283363,2.94438609,2025.6,2025.4,0.47960587]
[1773295283564,3.50176285,2025.7,2025.4,0.47960587]
[1773295283763,2.94438609,2025.6,2025.5,0.0011]
[1773295286180,8.47917737,2026.0,2025.5,0.0011]
[1773295286181,0.002,2026.2,2025.6,0.47850587]
[1773295286385,0.46726474,2026.4,2026.1,1.15553117]
[1773295286386,1.23574179,2026.4,2026.1,1.15553117]
[1773295286585,1.23574179,2026.4,2026.1,0.47850587]
[1773295286783,0.002,2026.4,2026.1,1.15663117]
[1773295286990,0.002,2026.4,2026.1,1.15553117]
[1773295287288,0.002,2026.6,2026.4,0.47850587]
[1773295288092,1.70069576,2026.9,2026.6,0.47850587]
[1773295289997,1.95065875,2026.9,2026.6,0.47850587]
[1773295290160,1.95065875,2026.9,2026.4,0.47960587]
[1773295290364,1.48539401,2026.9,2026.5,0.0011]
[1773295290565,0.46526474,2026.8,2026.5,0.0011]
[1773295291291,1.23353234,2026.7,2026.5,0.0011]
[1773295291600,1.48537559,2026.9,2026.5,0.47960587]
[1773295291769,1.48537559,2026.9,2026.6,0.0011]
[1773295291770,1.95064033,2026.9,2026.6,0.0011]
[1773295292176,0.46526474,2026.8,2026.6,0.0011]
[1773295292676,0.46526474,2026.8,2025.9,0.47850587]
[1773295293196,0.46526474,2026.6,2025.9,0.47850587]
[1773295293695,0.46526474,2026.4,2025.9,0.47850587]
[1773295294795,0.46526474,2026.4,2026.0,0.47850587]
[1773295295913,1.23377584,2026.3,2026.0,0.47850587]
[1773295296320,0.46526474,2026.2,2025.6,0.47850587]
[1773295298106,1.23389763,2026.1,2025.7,0.47850587]
[1773295299514,1.48552936,2026.5,2025.8,0.47850587]
[1773295299886,1.9507941,2026.5,2025.8,0.47850587]
[1773295300586,1.9507941,2026.5,2026.0,0.47850587]
[1773295300988,1.48552936,2026.5,2026.0,0.47850587]
[1773295301300,1.9507941,2026.5,2026.0,0.47850587]
[1773295301710,0.46526474,2026.4,2026.0,0.47850587]
[1773295302416,0.46626474,2026.4,2026.0,0.47850587]
[1773295302597,1.23377584,2026.3,2026.0,0.47850587]
[1773295308720,1.23377584,2026.3,2025.8,1.23513511]
[1773295308926,0.46788197,2026.2,2025.8,1.72780339]
[1773295309405,0.46788197,2026.2,2025.9,0.49266828]
[1773295310720,1.70176354,2026.2,2025.9,0.49266828]
[1773295311020,1.70176354,2026.2,2025.8,0.0011]
[1773295311021,0.4978294,2026.1,2025.8,0.0011]
[1773295311396,3.44449896,2026.1,2025.8,0.0011]
[1773295311616,0.4978294,2026.0,2025.5,0.46743515]
[1773295311797,0.4978294,2025.9,2025.5,0.46743515]
[1773295311997,0.4978294,2025.9,2025.6,0.46633515]
[1773295312197,1.7318191,2026.0,2025.6,0.46633515]
[1773295313225,2.94940198,2025.9,2025.6,0.46633515]
[1773295313429,1.7318191,2026.0,2025.6,0.46633515]
[1773295313598,2.94934156,2025.9,2025.6,0.46633515]
[1773295313934,0.4978294,2025.9,2025.6,0.46633515]
[1773295314133,0.4978294,2025.9,2025.5,0.0011]
[1773295314134,4.6819503,2025.8,2025.5,0.0011]
[1773295314328,3.44786994,2025.7,2025.5,0.0011]
[1773295314542,0.4978294,2025.7,2025.5,0.0011]
[1773295314727,0.4978294,2025.8,2025.5,0.46743515]
[1773295315039,2.95067481,2025.7,2025.5,1.23534267]
[1773295315326,4.08711774,2026.0,2025.6,0.46633515]
[1773295315528,2.9516706,2025.9,2025.6,0.46633515]
[1773295315734,2.9516706,2025.8,2025.6,0.46633515]
[1773295315911,1.73183602,2026.0,2025.6,0.46633515]
[1773295316223,2.9516706,2025.9,2025.7,0.46633515]
[1773295316419,2.9516706,2025.8,2025.7,0.46633515]
[1773295318447,4.18575324,2025.8,2025.5,0.46743515]
[1773295318653,1.23408264,2025.8,2025.5,0.46743515]
[1773295319235,1.73189912,2025.9,2025.6,0.46633515]
[1773295319437,2.95079829,2025.8,2025.6,0.46633515]
[1773295319720,1.97529435,2026.1,2025.6,0.46633515]
[1773295319924,3.44848202,2026.0,2025.6,0.46633515]
[1773295320146,2.95065262,2025.9,2025.6,0.46633515]
[1773295320357,1.73182491,2026.0,2025.6,0.46633515]
[1773295320544,2.95112111,2025.9,2025.6,0.46633515]
[1773295320849,0.4978294,2026.0,2025.7,0.46633515]
[1773295321054,2.95112111,2025.9,2025.7,0.46633515]
[1773295321222,1.97532777,2026.1,2025.7,0.46633515]
[1773295321547,2.95170121,2026.0,2025.7,0.46633515]
[1773295321726,2.95170121,2025.9,2025.6,0.46633515]
[1773295321931,2.95170121,2025.8,2025.6,0.46633515]
[1773295322253,0.4978294,2026.0,2025.6,0.46633515]
[1773295322454,2.9523522,2025.9,2025.6,0.46633515]
[1773295322658,2.9523522,2025.8,2025.6,0.46633515]
[1773295322954,1.73184385,2026.0,2025.6,0.46633515]
[1773295323157,2.9523522,2025.9,2025.6,0.46633515]
[1773295323354,2.9523522,2025.8,2025.6,0.46633515]
[1773295323529,1.73184385,2026.0,2025.6,0.46633515]
[1773295323728,2.95239208,2025.9,2025.6,0.46633515]
[1773295323950,2.95239208,2025.8,2025.6,0.46633515]
[1773295324158,1.73184385,2026.0,2025.6,0.46633515]
[1773295324366,2.95249231,2025.9,2025.6,0.46633515]
[1773295324536,2.95249231,2025.8,2025.6,0.46633515]
[1773295324740,1.23402512,2025.9,2025.6,0.46633515]
[1773295324967,2.95249231,2025.8,2025.6,0.46633515]
[1773295325153,1.73178853,2026.0,2025.7,0.46633515]
[1773295325481,2.95259682,2025.9,2025.7,0.46633515]
[1773295325677,2.95259682,2025.8,2025.7,0.46633515]
[1773295326883,2.95259682,2025.8,2025.5,1.70165193]
[1773295327060,0.4978294,2025.9,2025.5,1.70165193]
[1773295327357,2.95277836,2025.8,2025.6,0.46633515]
[1773295327557,0.4978294,2025.9,2025.6,0.46633515]
[1773295327757,2.9527067,2025.8,2025.6,0.46633515]
[1773295327968,0.4978294,2025.9,2025.6,0.46633515]
[1773295328157,2.9527067,2025.8,2025.6,0.46633515]
[1773295328467,1.23400418,2026.0,2025.6,0.46633515]
[1773295328775,3.45048116,2025.9,2025.5,1.23532858]
[1773295328981,2.95265176,2025.8,2025.5,1.70166373]
[1773295329179,0.4978294,2025.9,2025.5,1.70166373]
[1773295329484,2.95261949,2025.8,2025.6,0.46633515]
[1773295329645,1.73185059,2025.9,2025.5,1.70166373]
[1773295329968,2.95261949,2025.8,2025.5,1.70166373]
[1773295330172,0.4978294,2025.9,2025.5,1.70166373]
[1773295330380,2.95279271,2025.8,2025.5,1.70166373]
[1773295330568,0.4978294,2025.9,2025.5,1.70166373]
[1773295330876,2.95279271,2025.8,2025.5,1.70166373]
[1773295331054,0.4978294,2025.9,2025.5,1.70166373]
[1773295331356,2.95279271,2025.8,2025.5,1.70166373]
[1773295331555,0.4978294,2025.9,2025.5,1.70166373]
[1773295331759,2.95301848,2025.8,2025.5,1.70166373]
[1773295331970,0.4978294,2025.9,2025.5,1.70166373]
[1773295332160,2.95301848,2025.8,2025.5,1.70166373]
[1773295332471,0.4978294,2025.9,2025.5,1.70166373]
[1773295332661,2.95329663,2025.8,2025.5,1.70166373]
[1773295332861,0.4978294,2025.9,2025.6,0.46633515]
[1773295333078,2.95329663,2025.8,2025.6,0.46633515]
[1773295333281,0.4978294,2025.9,2025.6,0.46633515]
[1773295333579,2.9536315,2025.8,2025.6,0.46633515]
[1773295333781,0.4978294,2025.9,2025.6,0.46633515]
[1773295334102,2.9536315,2025.8,2025.6,0.46633515]
[1773295334260,0.4978294,2025.9,2025.6,0.46633515]
[1773295334460,2.9540325,2025.8,2025.6,0.46633515]
[1773295334756,1.23395863,2026.0,2025.7,0.46633515]
[1773295334973,1.23378259,2026.3,2025.9,0.46633515]
[1773295335170,2.95368256,2026.2,2025.9,0.46633515]
[1773295335368,2.95368256,2026.1,2025.8,0.46633515]
[1773295335572,0.4978294,2026.2,2025.8,0.46633515]
[1773295335767,2.95382713,2026.1,2025.8,0.46633515]
[1773295335974,0.4978294,2026.2,2025.8,0.46633515]
[1773295336278,2.95381984,2026.1,2025.8,0.46633515]
[1773295336455,0.4978294,2026.2,2025.8,0.46633515]
[1773295336658,2.95401824,2026.1,2025.8,0.46633515]
[1773295336883,0.4978294,2026.2,2025.8,0.46633515]
[1773295337080,2.95401824,2026.1,2025.8,1.23403312]
[1773295337283,0.4978294,2026.1,2025.6,0.46633515]
[1773295337580,1.2338527,2026.2,2025.6,0.46633515]
[1773295337581,0.4978294,2025.9,2025.6,0.46633515]
[1773295338885,0.4978294,2025.9,2025.8,0.0011]
[1773295339088,0.4988294,2025.9,2025.6,0.46633515]
[1773295339292,0.4988294,2025.9,2025.6,1.70051998]
[1773295339490,0.001,2025.9,2025.7,0.46633515]
[1773295341786,0.45874805,2025.9,2025.6,0.45652107]
[1773295343500,0.001,2025.9,2025.6,0.45652107]
[1773295343796,0.001,2025.9,2025.6,1.69067014]
[1773295344098,0.001,2025.9,2025.7,0.45652107]
[1773295345277,0.45874805,2025.9,2025.6,0.45652107]
[1773295345478,0.45874805,2025.9,2025.5,1.69188172]
[1773295345978,2.956722,2025.8,2025.5,1.69188172]
[1773295346179,0.45874805,2025.9,2025.5,1.69188172]
[1773295346382,2.95679793,2025.8,2025.5,1.69188172]
[1773295346589,0.45874805,2025.9,2025.5,1.69188172]
[1773295346890,2.95679793,2025.8,2025.5,1.69184532]
[1773295347105,0.45874805,2025.9,2025.5,1.69184532]
[1773295347405,0.45874805,2025.9,2025.3,0.0011]
[1773295347406,0.45774805,2025.7,2025.3,0.0011]
[1773295347589,0.45774805,2025.5,2025.3,0.0011]
[1773295349693,0.45774805,2025.5,2025.0,0.0011]
[1773295349694,0.45774805,2025.3,2025.0,0.0011]
[1773295349892,0.45774805,2025.3,2025.0,1.23564321]
[1773295350276,0.45774805,2025.3,2025.0,1.69216428]
[1773295350608,2.35528172,2025.7,2025.0,1.69216428]
[1773295350609,0.45774805,2025.7,2025.3,0.45652107]
[1773295350904,2.95548818,2025.6,2025.3,0.45652107]
[1773295351068,0.001,2025.7,2025.3,0.45652107]
[1773295351273,0.001,2025.7,2025.2,0.67688473]
[1773295351274,0.001,2025.7,2025.5,0.45762107]
[1773295352277,0.001,2025.7,2025.5,1.69188235]
[1773295354229,0.001,2025.7,2025.5,0.45762107]
[1773295354625,0.001,2025.7,2025.5,1.69188013]
[1773295355528,0.001,2025.7,2025.5,0.45762107]
[1773295355925,0.001,2025.7,2025.5,0.0011]
[1773295358348,0.001,2025.7,2025.5,0.45762107]
[1773295360118,0.45874805,2025.7,2025.5,0.0011]
[1773295360552,1.69277312,2025.9,2025.5,1.69184274]
[1773295360717,2.95463204,2025.8,2025.5,1.69184274]
[1773295360917,1.69277312,2025.9,2025.5,1.69184274]
[1773295361139,2.95453723,2025.8,2025.5,1.69184274]
[1773295361339,1.69277312,2025.9,2025.5,1.69184274]
[1773295362348,0.45874805,2025.9,2025.5,1.69184274]
[1773295362755,0.45874805,2025.9,2025.6,0.47078484]
[1773295363250,0.001,2025.7,2025.6,0.47078484]
[1773295363421,0.001,2025.9,2025.6,0.47078484]
[1773295363943,0.48539604,2026.2,2025.7,0.47078484]
[1773295364150,1.71923868,2026.2,2025.7,0.47078484]
[1773295364729,1.71923868,2026.2,2025.8,0.47078484]
[1773295366036,0.48539604,2026.2,2025.8,0.47078484]
[1773295366635,1.47622674,2026.3,2025.9,0.47078484]
[1773295367033,0.48639604,2026.4,2025.9,0.47078484]
[1773295367235,0.001,2026.4,2025.9,0.47078484]
[1773295368729,0.48639604,2026.4,2025.9,1.70475243]
[1773295369052,0.48639604,2026.4,2025.9,1.23396759]
[1773295369238,0.48639604,2026.4,2026.0,0.47078484]
[1773295370238,0.001,2026.4,2026.1,0.45992158]
[1773295371556,0.001,2026.4,2026.2,0.45992158]
[1773295375362,0.001,2026.2,2026.1,0.67751948]
[1773295375542,0.49802774,2026.4,2026.1,2.37133869]
[1773295376680,0.001,2026.4,2026.1,2.37133869]
[1773295379053,0.001,2026.4,2026.2,0.45992158]
[1773295379364,0.49702774,2026.7,2026.4,0.45992158]
[1773295379868,0.74089707,2026.7,2026.4,0.45992158]
[1773295380069,1.97443285,2026.7,2026.4,0.45992158]
[1773295380438,0.49702774,2026.6,2026.3,0.67641948]
[1773295380861,0.49702774,2026.6,2026.3,1.13634106]
[1773295381057,0.74089707,2026.7,2026.4,1.69363654]
[1773295381472,0.74089707,2026.7,2026.4,0.45992158]
[1773295381640,1.9744305,2026.7,2026.4,0.45992158]
[1773295381840,0.74089707,2026.7,2026.4,0.45992158]
[1773295382853,1.97443465,2026.7,2026.4,0.45992158]
[1773295383272,0.49702774,2026.6,2026.3,1.23372818]
[1773295383471,0.49702774,2026.6,2026.2,1.69371433]
[1773295385169,0.49702774,2026.6,2026.3,0.45992158]
[1773295385474,0.49702774,2026.6,2026.3,1.69366564]
[1773295386281,1.47740691,2026.7,2026.4,0.45992158]
[1773295386580,0.74089707,2026.7,2026.4,0.45992158]
[1773295387647,0.74089707,2026.7,2026.4,0.46092158]
[1773295388677,0.002,2026.6,2026.4,0.46092158]
[1773295389072,0.49902774,2026.6,2026.4,0.001]
[1773295389274,0.49902774,2026.6,2026.2,1.23483635]
[1773295389648,1.73262915,2026.6,2026.2,1.69475793]
[1773295391578,1.73262915,2026.6,2026.2,1.23483635]
[1773295391748,1.73262915,2026.6,2026.3,0.45992158]
[1773295392278,0.49902774,2026.6,2026.3,0.45992158]
[1773295392888,0.002,2026.6,2026.4,0.45992158]
[1773295393388,0.49902774,2026.9,2026.6,0.45992158]
[1773295393960,0.49902774,2026.9,2026.6,1.69349836]
[1773295393961,0.75185224,2026.9,2026.6,1.69349836]
[1773295394762,0.2548245,2026.9,2026.7,0.45992158]
[1773295395360,0.002,2026.9,2026.7,0.45992158]
[1773295396443,0.002,2026.9,2026.6,1.23357678]
[1773295396444,0.49902774,2026.9,2026.6,1.23357678]
[1773295396649,0.49902774,2026.9,2026.6,1.69349836]
[1773295396889,0.002,2026.9,2026.7,0.45992158]
[1773295397087,0.002,2027.1,2026.8,0.45992158]
[1773295398783,0.002,2027.1,2026.8,1.69336329]
[1773295399351,0.002,2027.1,2026.9,0.45992158]
[1773295400989,0.48417889,2027.1,2026.8,1.23344171]
[1773295403378,0.48417889,2027.1,2026.8,0.47688389]
[1773295403553,0.002,2027.1,2026.8,0.47688389]
[1773295404091,0.48417889,2027.3,2027.0,0.47688389]
[1773295404467,0.002,2027.3,2027.0,0.47688389]
[1773295405284,0.48417889,2027.3,2027.0,0.47688389]
[1773295405575,0.48417889,2027.3,2027.0,1.71021788]
[1773295406078,0.48217889,2027.2,2026.8,0.47688389]
[1773295406480,0.48217889,2027.2,2026.8,1.71030262]
[1773295409584,0.48217889,2027.2,2026.9,0.47688389]
[1773295409776,0.48217889,2027.2,2026.8,0.47688389]
[1773295410685,1.23323444,2027.2,2026.8,0.47688389]
[1773295410869,0.48217889,2027.1,2026.7,1.23353234]
[1773295411374,0.48217889,2027.1,2026.7,1.71041623]
[1773295411375,1.71546782,2027.1,2026.7,1.71041623]
[1773295411579,0.48217889,2027.1,2026.8,0.47688389]
[1773295411778,0.48217889,2027.2,2027.0,0.001]
[1773295412590,0.48417889,2027.2,2027.0,0.001]
[1773295413290,0.002,2027.2,2027.0,0.47788389]
[1773295413588,0.002,2027.2,2027.1,0.47688389]
[1773295414389,0.002,2027.2,2027.0,1.71118032]
[1773295415782,0.48417889,2027.2,2027.0,0.001]
[1773295418791,0.48217889,2027.1,2027.0,0.001]
[1773295419596,0.48417889,2027.2,2027.0,0.001]
[1773295419790,0.002,2027.2,2027.0,0.47788389]
[1773295421273,0.002,2027.2,2027.0,1.7112262]
[1773295421598,0.002,2027.2,2027.0,0.47788389]
[1773295421774,0.002,2027.2,2027.0,1.71122837]
[1773295422393,0.002,2027.2,2027.0,0.47788389]
[1773295422899,0.002,2027.2,2027.0,1.71121779]
[1773295423498,0.002,2027.2,2027.0,0.001]
[1773295423805,0.002,2027.2,2027.1,0.46626044]
[1773295424974,0.002,2027.2,2027.0,1.64054988]
[1773295426406,0.45286395,2027.2,2026.8,1.70070115]
[1773295427404,0.45286395,2027.2,2026.8,1.70072872]
[1773295427602,0.45286395,2027.2,2026.8,0.001]
[1773295427779,0.45286395,2027.2,2026.8,1.23445897]
[1773295429629,0.45086395,2027.1,2026.8,0.001]
[1773295432113,0.48616717,2027.0,2026.8,0.001]